Cogmind - Beta 15 @@@ ROGUE MODE // 2025.06.21 @ 22:37:03 Player: Dazazzell Result: Self-destructed Performance ------------- Evolutions (1) 500 Regions Visited (3) 600 Robots Destroyed (22) 110 Value Destroyed (683) 683 Prototype IDs (0) 0 Alien Tech Used (0) 0 Bonus (0) 0 TOTAL SCORE: 1893 Bonus ------- None Cogmind --------- Core Integrity 74/400 Matter 294/300 Energy 223/250 System Corruption 0% Temperature Cool (63) Movement Walking (190) Ox1 Location -9/Storage Parts ------- > --- POWER (1) -------- Ion Engine > --- PROPULSION (3) --- Improved Aluminum Leg Improved Aluminum Leg > --- UTILITY (3) ------ Large Storage Unit System Shield > --- WEAPON (2) ------- EM Pulse Gun Beam Rifle > --- INVENTORY (15) --- Ion Engine EM Pulse Gun Peak State ------------ > --- POWER ------------ Light Nuclear Core > --- PROPULSION ------- Light Treads Light Treads Light Treads > --- UTILITY ---------- Large Storage Unit Large Matter Pod System Shield > --- WEAPON ----------- Beam Rifle Beam Rifle > --- INVENTORY -------- Ion Engine Ion Engine Light Nuclear Core Aluminum Leg Aluminum Leg EM Pulse Gun EM Pulse Gun Assault Rifle [Rating: 16] Favorites ----------- Power Ion Engine Engine Ion Engine Power Core Light Nuclear Core Propulsion Aluminum Leg Treads Light Treads Leg Aluminum Leg Utility Large Matter Pod Storage Large Matter Pod Hackware System Shield Weapon Assault Rifle Energy Gun Beam Rifle Ballistic Gun Assault Rifle Launcher Grenade Launcher Build | -11 -10 -9 -9 ------- Run | Yrd Mat Mat Sto Slots Evolved 2 | . . 2 . Power . | . . . . Propulsion 1 | . . 1 . Utility 1 | . . 1 . Weapon . | . . . . Parts Attached 25 | 5 2 3 15 Power 4 | 1 . 1 2 Engine 2 | 1 . . 1 Core 2 | . . 1 1 Reactor . | . . . . Propulsion 9 | 2 . . 7 Treads 3 | . . . 3 Leg 6 | 2 . . 4 Wheel . | . . . . Hover . | . . . . Flight . | . . . . Utility 4 | 1 1 1 1 Device . | . . . . Storage 3 | 1 1 . 1 Processor . | . . . . Hackware 1 | . . 1 . Protection . | . . . . Artifact . | . . . . Weapon 8 | 1 1 1 5 Energy Gun 5 | . . 1 4 Energy Cannon . | . . . . Ballistic Gun 2 | 1 . . 1 Ballistic Cannon . | . . . . Launcher 1 | . 1 . . Special Weapon . | . . . . Impact Weapon . | . . . . Slashing Weapon . | . . . . Piercing Weapon . | . . . . Special Melee Weapon . | . . . . Unidentified Prototypes . | . . . . Parts Lost 8 | . . 1 7 Power 1 | . . . 1 Propulsion 3 | . . . 3 Utility 1 | . . . 1 Weapon 3 | . . 1 2 Highest Loss Streak 2 | . . 1 2 To Critical Strikes 1 | . . . 1 Average Backups 6 | 3 6 7 7 Power 2 | . 1 2 2 Propulsion 1 | 1 2 2 1 Utility . | . . 1 . Weapon 2 | 1 2 1 2 Tool/Special . | . . . . Unused Backups 1 | . . 1 . Power 1 | . . 1 . Propulsion . | . . . . Utility . | . . . . Weapon . | . . . . Tool/Special . | . . . . Average Slot Usage (%) 84 | . 84 76 89 Engine 7 | . 14 10 1 Core 4 | . . . 8 Treads 9 | . . . 21 Leg 16 | . 28 22 5 Storage 19 | . 14 22 20 Hackware 5 | . . . 11 Energy Gun 6 | . . 1 14 Ballistic Gun 9 | . 14 11 5 Launcher 5 | . 12 8 . Peak Build Rating 16 | 5 7 13 16 Average Rating 9 | 2 6 7 13 On Entrance 6 | . 5 7 13 Naked Turns . | . . . . Heaviest Build 34 | 12 18 18 34 Greatest Support 60 | 20 20 20 60 Greatest Overweight (x) 9 | 1 . . 9 Average Overweight (x) . | . . . . Largest Inventory Capacity 15 | 8 8 8 15 Average Capacity 10 | 6 8 8 14 Most Carried 11 | 5 8 8 11 Average Carried 6 | 3 6 7 7 Final Capacity 15 | 8 8 8 15 Final Carried 8 | 5 7 8 2 Class Distribution -------------------- 100% | Mutant Dominant Class ---------------- Mutant | -10/Materials Mutant | -9/Materials Mutant | -9/Storage Resources | -11 -10 -9 -9 ----------- Run | Yrd Mat Mat Sto Matter Collected 717 | 225 42 70 380 Remotely . | . . . . Salvage Created 570 | . 67 85 418 Parts 43 | . 7 11 25 Haulers Intercepted . | . . . . Recyclers Shooed 1 | . . . 1 Parts Field Recycled . | . . . . Retrieved Matter . | . . . . Parts Self-Destructed . | . . . . Prevented . | . . . . Kills | -11 -10 -9 -9 ------- Run | Yrd Mat Mat Sto Combat Hostiles Destroyed 18 | . 2 5 11 Melee 2 | . . . 2 Guns 12 | . 2 1 9 AOE 4 | . . 4 . Classes Destroyed 6 | . 2 3 1 Builder 2 | . 1 1 . Watcher 2 | . . 2 . Swarmer 4 | . . 4 . Grunt 7 | . 2 . 5 Duelist 1 | . . . 1 Sentry 6 | . . 1 5 Best Kill Streak 4 | . 3 4 3 Combat Bots Only 4 | . 2 4 3 Max Kills in Single Turn 2 | . 2 2 1 Gunslinging . | . . . . Exploded 2 | . . 2 . Melee 1 | . . . 1 Uniques/NPCs Destroyed . | . . . . Combat | -11 -10 -9 -9 -------- Run | Yrd Mat Mat Sto Hostile Shots Fired 168 | . 12 24 132 Missed 57 | . 3 14 40 Hits 111 | . 9 10 92 Melee 2 | . . . 2 Projectile 109 | . 9 10 90 Critical Strikes 5 | . . . 5 Damage Taken 1690 | . 160 158 1372 Core 373 | . 47 . 326 Absorbed by Shields . | . . . . Core Remaining (%) 90 | 100 81 . . Volleys Fired 69 | . 13 11 45 Largest 2 | . 2 2 2 Hottest 112 | . 50 50 112 Shots Fired 123 | . 16 20 87 Gun 111 | . 13 11 87 Cannon . | . . . . Launcher 12 | . 3 9 . Special . | . . . . Kinetic 45 | . 13 11 21 Thermal 63 | . . . 63 Explosive 12 | . 3 9 . Electromagnetic 3 | . . . 3 Robot Hit Streak 15 | . 7 4 15 Robot Miss Streak 3 | . 1 3 3 Penetration Max . | . . . . Secondary Targets 1 | . . . 1 Max Gunslinging Chain 1 | . . . 1 Shots Hit Robots 83 | . 11 8 64 Core Hits 40 | . 8 12 20 Critical Kills . | . . . . Critical Parts Destroyed . | . . . . Critical Strikes 1 | . . . 1 Burn 1 | . . . 1 Melee Attacks . | . . . . Impact . | . . . . Slashing . | . . . . Piercing . | . . . . Sneak Attacks . | . . . . Combat Hostiles . | . . . . Follow-up Attacks . | . . . . Damage Inflicted 1481 | . 232 428 821 Guns 907 | . 106 47 754 Cannons . | . . . . Explosions 501 | . 122 379 . Melee . | . . . . Ramming 73 | . 4 2 67 Kinetic 334 | . 106 47 181 Thermal 553 | . . . 553 Explosive 501 | . 122 379 . Electromagnetic 20 | . . . 20 Impact . | . . . . Slashing . | . . . . Piercing . | . . . . Highest Corruption . | . . . . Average Corruption . | . . . . Corruption Purged . | . . . . Corruption Blocked . | . . . . Overload Shots . | . . . . Overflow Damage 9 | . . 9 . Projectiles . | . . . . Explosions 9 | . . 9 . Melee . | . . . . Knockbacks . | . . . . Impact . | . . . . Kinetic . | . . . . Secondary . | . . . . Self-Inflicted Damage 77 | . 32 45 . Shots 3 | . 1 2 . Rammed 14 | . . . 14 Targets Rammed 31 | . 1 1 29 Kicked 15 | . 1 1 13 Crushed 2 | . . . 2 Highest Temperature 328 | . 6 2 328 Average Temperature 94 | . 2 2 98 Received Heat Transfer 588 | . 78 27 483 Effects 1 | . . . 1 Shutdowns 1 | . . . 1 Siege Activations . | . . . . Martial Activations . | . . . . Shielding Activations . | . . . . Robots Disrupted . | . . . . Combat Hostiles . | . . . . Robots Corrupted . | . . . . Combat Hostiles . | . . . . Parts Fried . | . . . . Impact Corruptions . | . . . . Robots Melted . | . . . . Combat Hostiles . | . . . . Parts Melted 2 | . . . 2 Heat Transferred 1480 | . . . 1480 Parts Sabotaged . | . . . . Parts Stolen . | . . . . Parts Stripped . | . . . . Power Chain Reactions . | . . . . Alert | -11 -10 -9 -9 ------- Run | Yrd Mat Mat Sto Maximum Alert Level . | . . . . Low Security (%) 100 | 100 100 100 100 Level 1 . | . . . . Level 2 . | . . . . Level 3 . | . . . . Level 4 . | . . . . Level 5 . | . . . . High Security . | . . . . Max Security . | . . . . Peak Influence 110 | . 61 110 95 Initial 9 | . . . 9 Average 38 | . 13 58 43 Influence Increases 595 | . 77 210 308 Destroy 0b10 Robot/C 360 | . 40 100 220 Destroy 0b10 Robot/NC 20 | . 5 15 . Destroy Leader 114 | . 10 24 80 Successful Hack 6 | . . . 6 Disable Machine 30 | . . 30 . Destroy Structure 65 | . 22 41 2 Influence Decreases 528 | . 77 188 263 Entered New Map 13 | . . . 13 Time Decay 435 | . 77 178 180 Lost Part 80 | . . 10 70 Squads Dispatched 3 | . . . 3 Investigation . | . . . . Extermination . | . . . . Reinforcement 2 | . . . 2 Assault . | . . . . Garrison 1 | . . . 1 Intercept . | . . . . Searches Triggered . | . . . . Construction Impeded . | . . . . Haulers Reinforced . | . . . . Active Scanning Responses . | . . . . Cargo Convoy Interrupts . | . . . . Stealth | -11 -10 -9 -9 --------- Run | Yrd Mat Mat Sto Distress Signals 1 | . . . 1 Communications Jammed . | . . . . Distress Signals . | . . . . Times Spotted 30 | . 5 8 17 Peak Tracking Total 4 | . 2 4 4 Tactical Retreats . | . . . . Traps | -11 -10 -9 -9 ------- Run | Yrd Mat Mat Sto Traps Triggered 2 | . . . 2 Indirectly . | . . . . Trap Hack Attempts . | . . . . Triggered . | . . . . Disarmed . | . . . . Reprogrammed . | . . . . Reused . | . . . . Traps Extracted . | . . . . Installed . | . . . . Triggered . | . . . . Machines | -11 -10 -9 -9 ---------- Run | Yrd Mat Mat Sto Machines Disabled 2 | . . 2 . Max in Single Turn 1 | . . 1 . Machines Repaired . | . . . . Machines Dismantled . | . . . . Machines Sabotaged . | . . . . Overloaded Fab Kills . | . . . . Hacking | -11 -10 -9 -9 --------- Run | Yrd Mat Mat Sto Machines Accessed 8 | . 1 3 4 Terminals 4 | . . 1 3 Fabricators . | . . . . Repair Stations 3 | . 1 1 1 Recycling Units . | . . . . Scanalyzers 1 | . . 1 . Garrison Access . | . . . . Total Hacks 15 | . 1 5 9 Successful 8 | . . 3 5 Failed 7 | . 1 2 4 Catastrophic . | . . . . Database Lockouts . | . . . . Manual 8 | . . 1 7 Terminals 9 | . . 2 7 Fabricators . | . . . . Repair Stations 4 | . 1 1 2 Recycling Units . | . . . . Scanalyzers 2 | . . 2 . Garrison Access . | . . . . Terminal Hacks 5 | . . 1 4 Record 2 | . . 1 1 Part Schematic 1 | . . . 1 Open Door 1 | . . . 1 Alert Level 1 | . . . 1 Fabricator Hacks . | . . . . Repair Station Hacks 1 | . . . 1 Scan Component 1 | . . . 1 Recycling Unit Hacks . | . . . . Scanalyzer 2 | . . 2 . Insert Component 1 | . . 1 . Analyze 1 | . . 1 . Garrison Access Hacks . | . . . . Unauthorized Hacks . | . . . . Terminals . | . . . . Fabricators . | . . . . Repair Stations . | . . . . Recycling Units . | . . . . Scanalyzers . | . . . . Garrison Access . | . . . . Data Cores Recovered . | . . . . Used . | . . . . Hacking Detections 1 | . . . 1 Full Trace Events . | . . . . Feedback Events . | . . . . Feedback Blocked . | . . . . Robot Schematics Acquired . | . . . . Robots Built . | . . . . Authchips . | . . . . Time . | . . . . Total Robot Build Rating . | . . . . Part Schematics Acquired 2 | . . 1 1 Parts Built . | . . . . Authchips . | . . . . Time . | . . . . Total Part Build Rating . | . . . . Parts Repaired . | . . . . Time . | . . . . Parts Recycled . | . . . . Recycled Matter . | . . . . Retrieved Matter . | . . . . Retrieved Components . | . . . . Parts Scanalyzed 1 | . . 1 . Part Schematics Acquired 1 | . . 1 . Parts Damaged . | . . . . Bothacking | -11 -10 -9 -9 ------------ Run | Yrd Mat Mat Sto Used RIF Installer . | . . . . Robots Hacked . | . . . . Non-combat . | . . . . Combat . | . . . . Robot Hacks Applied . | . . . . Relay Couplers Released . | . . . . Fabnet Peak Effective % . | . . . . Robots Rewired . | . . . . Allies Hacked . | . . . . Hacks Repelled . | . . . . Allies | -11 -10 -9 -9 -------- Run | Yrd Mat Mat Sto Total Allies . | . . . . Largest Group . | . . . . Highest-Rated Group . | . . . . Highest-Rated Ally . | . . . . Total Orders . | . . . . Ally Attacks . | . . . . Total Damage . | . . . . Kills . | . . . . Allies Corrupted . | . . . . Allies Melted . | . . . . Intel | -11 -10 -9 -9 ------- Run | Yrd Mat Mat Sto Active Infowar (turns) . | . . . . Robot Analysis Total . | . . . . Derelict Logs Recovered . | . . . . Drone Launches . | . . . . Drone Recoveries . | . . . . Exploration | -11 -10 -9 -9 ------------- Run | Yrd Mat Mat Sto Turns Passed 1385 | 65 336 400 584 Spaces Moved 830 | 55 250 301 224 Core 34 | 25 . . 9 Treads 171 | . . . 171 Legs 625 | 30 250 301 44 Wheels . | . . . . Hover . | . . . . Flight . | . . . . Fastest Speed 50 | 50 120 120 120 Average Speed 131 | 93 120 120 169 Slowest Speed 500 | 120 120 120 500 Overloaded Moves . | . . . . Propulsion Burnouts . | . . . . Robots Hopped . | . . . . Potential Cave-ins . | . . . . Cave-ins Triggered . | . . . . Exploration Rate (%) 24 | 3 38 24 33 Regions Visited 3 Branch Regions 1 Pre-discovered Areas . | . . . . Known Exits Taken . | . . . . Unknown Exits Taken 3 | 1 1 1 . Scrap Searched . | . . . . Spaces Dug 4 | . . 4 . Terrain Destroyed 60 | . 21 39 . Melee . | . . . . Projectile . | . . . . AOE 60 | . 21 39 . Terrain Rammed . | . . . . Walls Destroyed . | . . . . Machines Disabled . | . . . . Actions | -11 -10 -9 -9 --------- Run | Yrd Mat Mat Sto Total 987 | 67 269 319 332 Wait . | . . . . Move 827 | 54 249 300 224 Hop . | . . . . Pick Up 16 | 7 2 3 4 Fast Attach 11 | 4 2 1 4 Attach 17 | 1 1 1 14 Detach 8 | . 1 . 7 Swap 3 | . . 1 2 Drop 5 | 1 . 1 3 Fire 69 | . 13 11 45 Melee . | . . . . Ram . | . . . . Kick 15 | . 1 1 13 Crush 16 | . . . 16 Escape Stasis . | . . . . Rewire . | . . . . Trap . | . . . . Miscellaneous . | . . . . Route ------- -11/Scrapyard -10/Materials -9/Materials -9/Storage History --------- Turn | Location | Event 41 | -11/Scrapyard | Discovered new exit (range 15) 66 | -11/Scrapyard | Entered Materials 309 | -10/Materials | Build established: Mutant 336 | -10/Materials | Discovered new exit (range 16) 402 | -10/Materials | Entered another Materials area 402 | -9/Materials | Evolved 2 slots: Propulsion x1, Utility x1 772 | -9/Materials | Discovered new exit (range 9) 802 | -9/Materials | Entered Storage 1323 | -9/Storage | Core integrity fell below 50% 1359 | -9/Storage | Garrison activated, responded to threat 1366 | -9/Storage | Core integrity fell below 20% 1386 | -9/Storage | Self-destructed Last Messages --------------- Rifle. 01359_ Y-45 Defender calls for garrison reinforcements. 01359_ ALERT: Activating Garrison Access S001. [Achievement: Troublemaker] 01359_ Beam Rifle destroyed. 01362_ Y-45 Defender heat damages Lgt. Treads. 01362_ Kicked Y-45 Defender. 01364_ Kicked Y-45 Defender out of the way. 01370_ Kicked Y-45 Defender. 01374_ Destroyed Lgt. Treads. 01375_ Imp. Aluminum Leg destroyed. 01377_ Acquired 4 matter. 01377_ Destroyed Hvy. Assault Rifle. 01377_ Destroyed Lgt. Armor Plating. 01377_ R-06 Scavenger collects Imp. Ion Engine. 01382_ R-06 Scavenger collects Lgt. Treads. 01383_ Y-45 Defender destroyed. 01384_ R-06 Scavenger inserts Lgt. Treads into recycling unit. Map ----- +----------------------------------------------------+ | #????????????????????????????????????????????????? | | #??##????????????????????????????????????????????? | | ## ?????????????????????????????????????????????? | | # #?????????????????????????????????????????????? | | ##+######????????????????????????????????????????? | | #????????????????????????????????????????? | | #????????????????????????????????????????? | | / = #????????????????????????????????????????? | | """""" #????????????????????????????????????????? | | "???????????????????????????????????????????????? | | "???????????????????????????????????????????????? | | "???????????????????????????????????????????????? | | ????????????????????????????????????????????? | | ######???????????????????????????????????????????? | | ?????????????????????????????????????????????????? | | ?????????????????????????????????????????????????? | | ?????????????????????????????????????????????????? | | ###### #??????????????????????????????????????? | | +??????????????????????????????????????? | | #####????#??????????????????????????????????????? | | #??????? #?????###??????????????????????????????? | | #?###### #?##### #########??????????????????????? | | #?#"""## #?# # %#??????????????????????? | | ###"T"##/### # "" """ #??????????????????????? | | + # # "Y m""" #??????????????????????? | | +## """ """ # # ""r """@#??????????????????????? | | # """ """ # # r #??????????????????????? | | [# """ """ + /Y Y = #??????????????????????? | | # """ "" # # %=#??????????????????????? | | # """ """ # # r #??????????????????????? | | /# # ####"T"####??????????????????????? | | # ! * # #??#####?????????????????????????? | | ######!#### #????????????????????????????????? | | #????###??# #????????????????????????????????? | | #?????????# #????????????????????????????????? | | ###?????????# #????????????????????????????????? | | ????????????# #????????????????????????????????? | | ????????????+ +????????????????????????????????? | | ????????????# #????????????????????????????????? | | ????????????# +????????????????????????????????? | | ????????????# #????????????????????????????????? | | ????????????+ #????????????????????????????????? | | ????????????##+#?????????????????????????????????? | | ?????????????????????????????????????????????????? | | ?????????????????????????????????????????????????? | | ?????????????????????????????????????????????????? | | ?????????????????????????????????????????????????? | | ?????????????????????????????????????????????????? | | ?????????????????????????????????????????????????? | | ?????????????????????????????????????????????????? | +----------------------------------------------------+ Best States ------------- Heat Dissipation 28 Energy Generation 14 Energy Capacity 250 Matter Stores 401 Matter Capacity 450 Sight Range 16 Terrain Scan Density 10 Evasion (%) 55 Recoil Reduction 3 Defensive Hacking 10 Item Schematics ----------------- Ion Engine | -9/Materials | Scanalyzed Spread Laser | -9/Storage | Hacked Robot Schematics ------------------ None Fabricated ------------ Nothing Repaired ---------- Nothing Alien Tech Used ----------------- None Achievements -------------- Troublemaker Challenges ------------ None Game ------ Seed HeatConstructStorm Manual? 0 Play Time 00:53:25 Cumulative 3.8 hours Start 2025.06.21 @ 16:41:49 End 2025.06.21 @ 22:37:03 Sessions 3 Manual Loads 0 Difficulty Rogue Special Mode None Game No. 8 Rogue 8 Adventurer 0 Explorer 0 Win Type - Total 0 Types 0/0/0/0/0/0/0/0/0/0 Lore% 3 Gallery% 3 Achievement% 4 Wizard Run 0 Options --------- Layout 1 ASCII 0 Keyboard 1 Movement Arrows Keybinds 0 Fullscreen 2 Font 24/Smallcaps Map View 50x40 Zoom Use 0% Tactical HUD 1 Map Filters NONE Filters NONE Steam 0 RUN: fd0481a2-ff11-4312-9fde-aea393d2a78c